fUSD/lending_fUSD_20250108
["ID","MTS","AMOUNT","RATE_DAILY","PERIOD"]
[348092396,1736307043827,-661.92,0.0001082,2]
[348092397,1736307043837,-500.0,0.0001082,2]
[348092398,1736307043846,-500.0,0.0001082,2]
[348092399,1736307043855,-500.0,0.0001082,2]
[348092400,1736307043864,-500.0,0.0001082,2]
[348092401,1736307043873,-500.0,0.0001082,2]
[348092402,1736307043883,-1131.08,0.0001082,2]
[348092403,1736307043892,-513.34443965,0.0001082,2]
[348092404,1736307043902,-500.0,0.0001082,2]
[348092405,1736307043911,-436.54527382,0.0001082,2]
[348092406,1736307043920,-500.0,0.0001082,2]
[348092407,1736307043930,-500.0,0.0001082,2]
[348092408,1736307043940,-591.8,0.0001082,2]
[348092409,1736307043954,-500.0,0.0001082,2]
[348092410,1736307044134,-500.0,0.0001082,2]
[348092411,1736307044144,-500.0,0.0001082,2]
[348092412,1736307044154,-500.0,0.0001082,2]
[348092413,1736307044164,-1376.58,0.0001082,2]
[348092414,1736307044174,-500.0,0.0001082,2]
[348092415,1736307044183,-2695.04,0.0001082,2]
[348092416,1736307044192,-500.0,0.0001082,2]
[348092417,1736307044203,-500.0,0.0001082,2]
[348092418,1736307044214,-596.91,0.0001082,2]
[348092419,1736307044225,-500.0,0.0001082,2]
[348092420,1736307044235,-500.0,0.0001082,2]
[348092421,1736307044244,-559.58,0.0001082,2]
[348092422,1736307044253,-683.62,0.0001082,2]
[348092423,1736307044263,-512.6219373,0.0001082,2]
[348092424,1736307044272,-500.0,0.0001082,2]
[348092425,1736307044282,-500.0,0.0001082,2]
[348092426,1736307044291,-500.0,0.0001082,2]
[348092427,1736307044302,-500.0,0.0001082,2]
[348092428,1736307044313,-500.0,0.0001082,2]
[348092429,1736307044324,-500.0,0.0001082,2]
[348092430,1736307044333,-834.01,0.0001082,2]
[348092431,1736307044343,-536.45,0.0001082,2]
[348092432,1736307044352,-528.06426566,0.0001082,2]
[348092433,1736307044361,-500.0,0.0001082,2]
[348092434,1736307044370,-571.27,0.0001082,2]
[348092435,1736307044380,-500.0,0.0001082,2]
[348092436,1736307044389,-375.535364,0.0001082,2]
[348092437,1736307044398,-500.0,0.0001082,2]
[348092438,1736307044407,-500.0,0.0001082,2]
[348092439,1736307044416,-1637.45,0.0001082,2]
[348092440,1736307044425,-500.0,0.0001082,2]
[348092441,1736307044435,-591.52,0.0001082,2]
[348092442,1736307044444,-357.80011,0.0001082,2]
[348092443,1736307044453,-1154.07,0.0001082,2]
[348092444,1736307044462,-500.0,0.0001082,2]
[348092445,1736307044471,-500.0,0.0001082,2]
[348092446,1736307044481,-824.08,0.0001082,2]
[348092447,1736307044490,-573.38536217,0.0001082,2]
[348092448,1736307044499,-1705.56,0.0001082,2]
[348092449,1736307044508,-500.0,0.0001082,2]
[348092450,1736307044519,-500.0,0.0001082,2]
[348092451,1736307044528,-688.7,0.0001082,2]
[348092452,1736307044538,-500.0,0.0001082,2]
[348092453,1736307044548,-500.0,0.0001082,2]
[348092454,1736307044557,-500.0,0.0001082,2]
[348092455,1736307044566,-500.0,0.0001082,2]
[348092456,1736307044576,-500.0,0.0001082,2]
[348092457,1736307044585,-500.0,0.0001082,2]
[348092458,1736307044594,-629.68,0.0001082,2]
[348092459,1736307044603,-500.0,0.0001082,2]
[348092460,1736307044613,-500.0,0.0001082,2]
[348092461,1736307044622,-596.46,0.0001082,2]
[348092462,1736307044631,-511.11,0.0001082,2]
[348092463,1736307044641,-500.0,0.0001082,2]
[348092464,1736307044650,-500.0,0.0001082,2]
[348092465,1736307044660,-512.52082297,0.0001082,2]
[348092466,1736307044669,-500.0,0.0001082,2]
[348092467,1736307044678,-2190.99,0.0001082,2]
[348092468,1736307044687,-500.0,0.0001082,2]
[348092469,1736307044697,-500.0,0.0001082,2]
[348092470,1736307044706,-916.93,0.0001082,2]
[348092471,1736307044715,-260.93,0.0001082,2]
[348092472,1736307044724,-1026.98,0.0001082,2]
[348092473,1736307044734,-530.47,0.0001082,2]
[348092474,1736307044743,-1871.54,0.0001082,2]
[348092475,1736307044753,-211.24056948,0.0001082,2]
[348092476,1736307044762,-500.0,0.0001082,2]
[348092477,1736307044772,-500.0,0.0001082,2]
[348092478,1736307044781,-500.0,0.0001082,2]
[348092479,1736307044791,-500.0,0.00010821,2]
[348092480,1736307044800,-500.0,0.00010821,2]
[348092481,1736307044809,-1615.48,0.00010821,2]
[348092482,1736307044818,-500.0,0.00010821,2]
[348092483,1736307044828,-523.61,0.00010821,2]
[348092484,1736307044838,-712.95,0.00010821,2]
[348092485,1736307044847,-577.06,0.00010821,2]
[348092486,1736307044857,-857.33,0.00010821,2]
[348092487,1736307044866,-565.44,0.00010821,2]
[348092488,1736307044876,-500.0,0.00010821,2]
[348092489,1736307044885,-1281.66,0.00010821,2]
[348092490,1736307044895,-865.29,0.00010821,2]
[348092491,1736307044904,-500.0,0.00010821,2]
[348092492,1736307044914,-763.72,0.00010821,2]
[348092493,1736307044923,-500.0,0.00010821,2]
[348092494,1736307044932,-1171.69,0.00010821,2]
[348092495,1736307044944,-1103.29,0.00010821,2]
[348092496,1736307044955,-642.61,0.00010821,2]
[348092497,1736307044964,-500.0,0.00010821,2]
[348092498,1736307044973,-500.0,0.00010821,2]
[348092499,1736307044983,-953.38,0.00010821,2]
[348092500,1736307044992,-2465.35,0.00010821,2]
[348092501,1736307045001,-627.45,0.00010821,2]
[348092502,1736307045011,-500.0,0.00010821,2]
[348092503,1736307045023,-500.0,0.00010821,2]
[348092504,1736307045033,-261.23263587,0.00010821,2]
[348092505,1736307045044,-640.18,0.00010821,2]
[348092506,1736307045053,-644.21,0.00010821,2]
[348092507,1736307045062,-500.0,0.00010821,2]
[348092508,1736307045072,-500.0,0.00010821,2]
[348092509,1736307045082,-500.0,0.00010821,2]
[348092510,1736307045093,-1092.19,0.00010821,2]
[348092511,1736307045104,-500.0,0.00010821,2]
[348092512,1736307045115,-500.0,0.00010821,2]
[348092513,1736307045125,-709.22,0.00010821,2]
[348092514,1736307045135,-174.44564094,0.000109,2]
[348092515,1736307045146,-174.44564091,0.000109,2]
[348092516,1736307045157,-1331.66280704,0.000109,2]
[348092517,1736307045168,-159.945,0.0001092,2]
[348092518,1736307045178,-1378.07,0.00010958,2]
[348092519,1736307045188,-150.0,0.00010959,2]
[348092520,1736307045199,-634.0,0.00010965,2]
[348092521,1736307045209,-566.0,0.00010965,2]
[348092522,1736307045219,-1860.0,0.00010965,2]
[348092523,1736307045229,-896.695,0.00010965,2]
[348092524,1736307045238,-1258.0,0.00010965,2]
[348092525,1736307045247,-3776.0,0.00010965,2]
[348092526,1736307045257,-819.0,0.00010965,2]
[348092527,1736307045267,-3976.0,0.00010965,2]
[348092528,1736307045276,-537.0,0.00010965,2]
[348092529,1736307045286,-1103.0,0.00010965,2]
[348092530,1736307045297,-2015.0,0.00010965,2]
[348092531,1736307045307,-3895.0,0.00010965,2]
[348092532,1736307045317,-150.0,0.00010965,2]
[348092533,1736307045328,-1267.0,0.00010965,2]
[348092534,1736307045339,-636.0,0.00010965,2]
[348092535,1736307045348,-1331.66280675,0.00010969,2]
[348092536,1736307045358,-400.0,0.00010986,2]
[348092537,1736307045367,-184.0,0.00010996,2]
[348092538,1736307045378,-748.617,0.00011,2]
[348092539,1736307045388,-1331.66280675,0.00011038,2]
[348092540,1736307045398,-150.0,0.00011047,2]
[348092541,1736307045407,-150.0,0.00011047,2]
[348092542,1736307045416,-150.0,0.00011047,2]
[348092543,1736307045426,-150.15451701,0.00011047,2]
[348092544,1736307045436,-150.0,0.00011047,2]
[348092545,1736307045448,-500.0,0.00011092,2]
[348092546,1736307045458,-500.0,0.00011092,2]
[348092547,1736307045467,-500.0,0.00011092,2]
[348092548,1736307045476,-500.0,0.00011092,2]
[348092549,1736307045486,-508.5526999,0.00011092,2]
[348092550,1736307045495,-500.0,0.00011092,2]
[348092551,1736307045504,-500.0,0.00011092,2]
[348092552,1736307045514,-2929.19,0.00011092,2]
[348092553,1736307045524,-500.0,0.00011092,2]
[348092554,1736307045536,-500.0,0.00011092,2]
[348092555,1736307045546,-500.0,0.00011092,2]
[348092556,1736307045555,-508.65560716,0.00011092,2]
[348092557,1736307045565,-500.0,0.00011092,2]
[348092558,1736307045574,-509.00609673,0.00011092,2]
[348092559,1736307045584,-500.0,0.00011092,2]
[348092560,1736307045594,-617.04665624,0.00011092,2]
[348092561,1736307045606,-160.539027,0.00011092,2]
[348092562,1736307045616,-500.0,0.00011092,2]
[348092563,1736307045626,-500.0,0.00011092,2]
[348092564,1736307045636,-500.0,0.00011092,2]
[348092565,1736307045646,-503.81,0.00011092,2]
[348092566,1736307045655,-500.0,0.00011092,2]
[348092567,1736307045665,-500.0,0.00011092,2]
[348092568,1736307045674,-548.43,0.00011092,2]
[348092569,1736307045684,-500.0,0.00011092,2]
[348092570,1736307045693,-543.43,0.00011092,2]
[348092571,1736307045703,-500.0,0.00011093,2]
[348092573,1736307045712,-500.0,0.00011093,2]
[348092576,1736307045722,-500.0,0.00011093,2]
[348092579,1736307045731,-500.0,0.00011093,2]
[348092581,1736307045741,-500.0,0.00011093,2]
[348092583,1736307045751,-500.0,0.00011093,2]
[348092585,1736307045761,-500.0,0.00011093,2]
[348092587,1736307045771,-505.77,0.00011093,2]
[348092589,1736307045781,-500.0,0.00011093,2]
[348092591,1736307045790,-563.86,0.00011093,2]
[348092592,1736307045800,-505.63,0.00011093,2]
[348092593,1736307045809,-500.0,0.00011093,2]
[348092595,1736307045818,-151.83,0.00011094,2]
[348092597,1736307045829,-508.32,0.00011094,2]
[348092599,1736307045840,-580.41,0.00011094,2]
[348092601,1736307045850,-1709.75,0.00011094,2]
[348092603,1736307045859,-1346.78,0.00011094,2]
[348092604,1736307045869,-1000.0,0.00011094,2]
[348092605,1736307045878,-1094.83,0.00011094,2]
[348092606,1736307045888,-500.0,0.00011094,2]
[348092608,1736307045899,-500.0,0.00011094,2]
[348092610,1736307045908,-500.0,0.00011094,2]
[348092612,1736307045918,-500.0,0.00011094,2]
[348092614,1736307045928,-500.0,0.00011094,2]
[348092616,1736307045938,-500.0,0.00011094,2]
[348092618,1736307045950,-265.42520827,0.00011094,2]
[348092620,1736307045959,-500.0,0.00011094,2]
[348092622,1736307045971,-500.0,0.00011094,2]
[348092625,1736307045983,-579.82,0.00011094,2]
[348092627,1736307045996,-500.0,0.00011094,2]
[348092629,1736307046008,-500.0,0.00011094,2]
[348092631,1736307046020,-602.69,0.00011094,2]
[348092633,1736307046031,-500.0,0.00011094,2]
[348092634,1736307046043,-244.25584974,0.00011094,2]
[348092635,1736307046055,-500.0,0.00011094,2]
[348092636,1736307046066,-500.0,0.00011094,2]
[348092637,1736307046078,-371.90453854,0.00011094,2]
[348092638,1736307046091,-500.0,0.00011094,2]
[348092639,1736307046102,-1340.32,0.00011094,2]
[348092640,1736307046114,-500.0,0.00011094,2]
[348092641,1736307046126,-629.25039629,0.00011094,2]
[348092642,1736307046137,-500.0,0.00011094,2]
[348092643,1736307046148,-500.0,0.00011094,2]
[348092644,1736307046158,-221.41261908,0.00011094,2]
[348092645,1736307046171,-500.0,0.00011094,2]
[348092646,1736307046183,-500.0,0.00011094,2]
[348092647,1736307046195,-500.0,0.00011094,2]
[348092648,1736307046207,-500.0,0.00011094,2]
[348092649,1736307046218,-500.0,0.00011094,2]
[348092650,1736307046230,-500.0,0.00011094,2]
[348092651,1736307046243,-500.0,0.00011094,2]
[348092652,1736307046255,-500.0,0.00011094,2]
[348092653,1736307046267,-500.0,0.00011094,2]
[348092654,1736307046280,-1531.81,0.00011094,2]
[348092655,1736307046293,-500.0,0.00011094,2]
[348092656,1736307046306,-500.0,0.00011094,2]
[348092657,1736307046318,-500.0,0.00011094,2]
[348092658,1736307046330,-500.0,0.00011094,2]
[348092659,1736307046343,-500.0,0.00011094,2]
[348092660,1736307046353,-661.92,0.00011094,2]
[348092661,1736307046365,-578.74802746,0.00011094,2]
[348092662,1736307046378,-500.0,0.00011094,2]
[348092663,1736307046391,-500.0,0.00011094,2]
[348092664,1736307046404,-500.0,0.00011094,2]
[348092665,1736307046415,-422.4176623,0.00011094,2]
[348092666,1736307046427,-1131.08,0.00011094,2]
[348092667,1736307046438,-500.0,0.00011094,2]
[348092668,1736307046451,-500.0,0.00011094,2]
[348092669,1736307046462,-500.0,0.00011094,2]
[348092670,1736307046475,-591.8,0.00011094,2]
[348092671,1736307046489,-500.0,0.00011094,2]
[348092672,1736307046500,-500.0,0.00011094,2]
[348092673,1736307046510,-500.0,0.00011094,2]
[348092674,1736307046523,-500.0,0.00011094,2]
[348092675,1736307046536,-1376.58,0.00011094,2]
[348092676,1736307046549,-500.0,0.00011094,2]
[348092677,1736307046561,-2695.04,0.00011094,2]
[348092678,1736307046575,-500.0,0.00011094,2]
[348092679,1736307046586,-500.0,0.00011094,2]
[348092680,1736307046597,-596.91,0.00011094,2]
[348092681,1736307046607,-500.0,0.00011094,2]
[348092682,1736307046618,-500.0,0.00011094,2]
[348092683,1736307046630,-559.58,0.00011094,2]
[348092684,1736307046642,-683.62,0.00011094,2]
[348092685,1736307046653,-500.0,0.00011094,2]
[348092686,1736307046665,-541.80669716,0.00011094,2]
[348092687,1736307046676,-500.0,0.00011094,2]
[348092688,1736307046688,-500.0,0.00011094,2]
[348092689,1736307046699,-500.0,0.00011094,2]
[348092690,1736307046711,-500.0,0.00011094,2]
[348092691,1736307046724,-834.01,0.00011094,2]
[348092692,1736307046735,-536.45,0.00011094,2]
[348092693,1736307046746,-500.0,0.00011094,2]
[348092694,1736307046757,-571.27,0.00011094,2]
[348092695,1736307046770,-500.0,0.00011094,2]
[348092696,1736307046781,-375.535364,0.00011094,2]
[348092697,1736307046794,-500.0,0.00011094,2]
[348092698,1736307046805,-500.0,0.00011094,2]
[348092699,1736307046816,-1637.45,0.00011094,2]
[348092700,1736307046828,-500.0,0.00011094,2]
[348092701,1736307046839,-591.52,0.00011094,2]
[348092702,1736307046851,-357.80011,0.00011094,2]
[348092703,1736307046862,-1154.07,0.00011094,2]
[348092704,1736307046874,-500.0,0.00011094,2]
[348092705,1736307046885,-408.7586218,0.00011094,2]
[348092706,1736307046897,-824.08,0.00011094,2]
[348092707,1736307046909,-1705.56,0.00011094,2]
[348092708,1736307046920,-500.0,0.00011094,2]
[348092709,1736307046932,-508.4264153,0.00011094,2]
[348092710,1736307046947,-688.7,0.00011094,2]
[348092711,1736307046959,-516.74452115,0.00011094,2]
[348092712,1736307046970,-500.0,0.00011094,2]
[348092713,1736307046983,-500.0,0.00011094,2]
[348092714,1736307046994,-500.0,0.00011094,2]
[348092715,1736307047005,-479.21210173,0.00011094,2]
[348092716,1736307047017,-259.68200493,0.00011094,2]
[348092717,1736307047027,-500.0,0.00011094,2]
[348092718,1736307047041,-629.68,0.00011094,2]
[348092719,1736307047053,-500.0,0.00011094,2]
[348092720,1736307047063,-596.46,0.00011094,2]
[348092721,1736307047074,-511.11,0.00011094,2]
[348092722,1736307047085,-500.0,0.00011094,2]
[348092723,1736307047097,-499.33032424,0.00011094,2]
[348092724,1736307047109,-500.0,0.00011094,2]
[348092725,1736307047119,-2190.99,0.00011094,2]
[348092726,1736307047130,-500.0,0.00011094,2]
[348092727,1736307047141,-335.04650648,0.00011094,2]
[348092728,1736307047152,-916.93,0.00011094,2]
[348092729,1736307047163,-1026.98,0.00011094,2]
[348092730,1736307047174,-530.47,0.00011094,2]
[348092731,1736307047184,-1871.54,0.00011094,2]
[348092732,1736307047196,-500.0,0.00011094,2]
[348092733,1736307047207,-500.0,0.00011094,2]
[348092734,1736307047219,-500.0,0.00011095,2]
[348092735,1736307047230,-500.0,0.00011095,2]
[348092736,1736307047243,-1615.48,0.00011095,2]
[348092737,1736307047254,-500.0,0.00011095,2]
[348092738,1736307047264,-523.61,0.00011095,2]
[348092739,1736307047276,-712.95,0.00011095,2]
[348092740,1736307047287,-577.06,0.00011095,2]
[348092741,1736307047299,-857.33,0.00011095,2]
[348092742,1736307047311,-565.44,0.00011095,2]
[348092743,1736307047322,-500.0,0.00011095,2]
[348092744,1736307047333,-1281.66,0.00011095,2]
[348092745,1736307047344,-865.29,0.00011095,2]
[348092746,1736307047356,-500.0,0.00011095,2]
[348092747,1736307047366,-763.72,0.00011095,2]
[348092748,1736307047377,-500.0,0.00011095,2]
[348092749,1736307047389,-1171.69,0.00011095,2]
[348092750,1736307047400,-1103.29,0.00011095,2]
[348092751,1736307047412,-642.61,0.00011095,2]
[348092752,1736307047423,-500.0,0.00011095,2]
[348092753,1736307047434,-500.0,0.00011095,2]
[348092754,1736307047444,-953.38,0.00011095,2]
[348092755,1736307047456,-2465.35,0.00011095,2]
[348092756,1736307047467,-627.45,0.00011095,2]
[348092757,1736307047477,-500.0,0.00011095,2]
[348092758,1736307047489,-500.0,0.00011095,2]
[348092759,1736307047500,-640.18,0.00011095,2]
[348092760,1736307047511,-644.21,0.00011095,2]
[348092761,1736307047525,-500.0,0.00011095,2]
[348092762,1736307047536,-500.0,0.00011095,2]
[348092763,1736307047547,-500.0,0.00011095,2]
[348092764,1736307047558,-1092.19,0.00011095,2]
[348092765,1736307047569,-500.0,0.00011095,2]
[348092766,1736307047580,-500.0,0.00011095,2]
[348092767,1736307047591,-1567.27358724,0.00011099,2]
[348092768,1736307047603,-1567.2735872,0.00011099,2]
[348092769,1736307047615,-1567.2735872,0.00011099,2]
[348092770,1736307047626,-1567.2735872,0.00011099,2]
[348092771,1736307047637,-1567.2735872,0.00011099,2]
[348092772,1736307047648,-1331.66280675,0.00011107,2]
[348092773,1736307047659,-1567.2735872,0.00011117,2]
[348092774,1736307047670,-150.0,0.00011134,2]
[348092775,1736307047681,-150.0,0.00011158,2]
[348092776,1736307047692,-1331.66280675,0.00011176,2]
[348092777,1736307047704,-429.70395169,0.00011197,2]
[348092778,1736307047715,-150.0,0.00011222,2]
[348092779,1736307047726,-174.44564091,0.00011233,2]
[348092780,1736307047738,-1331.66280675,0.00011245,2]
[348092781,1736307047749,-150.0,0.00011251,2]
[348092782,1736307047760,-732.654716,0.00011269,2]
[348092783,1736307047772,-150.0,0.0001127,2]
[348092784,1736307047783,-150.0,0.0001131,2]
[348092785,1736307047795,-1331.66280675,0.00011314,2]
[348092786,1736307047805,-300.0,0.00011356,2]
[348092787,1736307047817,-1567.2735872,0.0001136,2]
[348092788,1736307047829,-500.0,0.00011366,2]
[348092789,1736307047840,-500.0,0.00011366,2]
[348092790,1736307047851,-500.0,0.00011366,2]
[348092791,1736307047863,-506.71614611,0.00011366,2]
[348092792,1736307047874,-500.0,0.00011366,2]
[348092793,1736307047885,-500.0,0.00011366,2]
[348092794,1736307047896,-2929.19,0.00011366,2]
[348092795,1736307047907,-616.04958117,0.00011366,2]
[348092796,1736307047919,-500.0,0.00011366,2]
[348092797,1736307047930,-500.0,0.00011366,2]
[348092798,1736307047942,-200.06012472,0.00011366,2]
[348092799,1736307047957,-424.04341963,0.00011366,2]
[348092800,1736307047968,-639.16304132,0.00011366,2]
[348092801,1736307047979,-548.43,0.00011366,2]
[348092802,1736307047991,-500.0,0.00011366,2]
[348092803,1736307048002,-500.0,0.00011367,2]
[348092804,1736307048013,-500.0,0.00011367,2]
[348092805,1736307048027,-500.0,0.00011367,2]
[348092806,1736307048039,-500.0,0.00011367,2]
[348092807,1736307048051,-500.0,0.00011367,2]
[348092808,1736307048062,-500.0,0.00011367,2]
[348092809,1736307048073,-500.0,0.00011367,2]
[348092810,1736307048085,-505.77,0.00011367,2]
[348092811,1736307048097,-500.0,0.00011367,2]
[348092812,1736307048109,-563.86,0.00011367,2]
[348092813,1736307048120,-505.63,0.00011367,2]
[348092814,1736307048131,-500.0,0.00011367,2]
[348092815,1736307048142,-580.41,0.00011368,2]
[348092816,1736307048154,-1709.75,0.00011368,2]
[348092817,1736307048164,-1346.78,0.00011368,2]
[348092818,1736307048174,-1094.83,0.00011368,2]
[348092819,1736307048184,-500.0,0.00011368,2]
[348092820,1736307048456,-500.0,0.00011368,2]
[348092821,1736307048496,-500.0,0.00011368,2]
[348092822,1736307048515,-500.0,0.00011368,2]
[348092823,1736307048528,-500.0,0.00011368,2]
[348092824,1736307048538,-500.0,0.00011368,2]
[348092825,1736307048547,-500.0,0.00011368,2]
[348092826,1736307048557,-500.0,0.00011368,2]
[348092827,1736307048567,-579.82,0.00011368,2]
[348092828,1736307048576,-500.0,0.00011368,2]
[348092829,1736307048586,-500.0,0.00011368,2]
[348092830,1736307048595,-602.69,0.00011368,2]
[348092831,1736307048604,-500.0,0.00011368,2]
[348092832,1736307048613,-500.0,0.00011368,2]
[348092833,1736307048623,-500.0,0.00011368,2]
[348092834,1736307048632,-500.0,0.00011368,2]
[348092835,1736307048642,-1340.32,0.00011368,2]
[348092836,1736307048653,-500.0,0.00011368,2]
[348092837,1736307048663,-500.0,0.00011368,2]
[348092838,1736307048674,-500.0,0.00011368,2]
[348092839,1736307048683,-500.0,0.00011368,2]
[348092840,1736307048693,-500.0,0.00011368,2]
[348092842,1736307048702,-500.0,0.00011368,2]
[348092843,1736307048712,-544.59648988,0.00011368,2]
[348092844,1736307048722,-500.0,0.00011368,2]
[348092845,1736307048731,-198.05110758,0.00011368,2]
[348092846,1736307048740,-500.0,0.00011368,2]
[348092847,1736307048750,-500.0,0.00011368,2]
[348092848,1736307048759,-255.73646079,0.00011368,2]
[348092849,1736307048770,-1531.81,0.00011368,2]
[348092850,1736307048779,-500.0,0.00011368,2]
[348092851,1736307048789,-500.0,0.00011368,2]
[348092852,1736307048799,-500.0,0.00011368,2]
[348092853,1736307048809,-500.0,0.00011368,2]
[348092854,1736307048819,-500.0,0.00011368,2]
[348092855,1736307048829,-661.92,0.00011368,2]
[348092856,1736307048839,-500.0,0.00011368,2]
[348092857,1736307048848,-500.0,0.00011368,2]
[348092858,1736307048858,-500.0,0.00011368,2]
[348092859,1736307048868,-1131.08,0.00011368,2]
[348092860,1736307048878,-500.0,0.00011368,2]
[348092861,1736307048888,-500.0,0.00011368,2]
[348092862,1736307048897,-500.0,0.00011368,2]
[348092863,1736307048906,-591.8,0.00011368,2]
[348092864,1736307048915,-510.54622434,0.00011368,2]
[348092865,1736307048924,-500.0,0.00011368,2]
[348092866,1736307048934,-500.0,0.00011368,2]
[348092867,1736307048948,-223.31281242,0.00011368,2]
[348092868,1736307048957,-1376.58,0.00011368,2]
[348092869,1736307048967,-500.0,0.00011368,2]
[348092870,1736307048978,-2695.04,0.00011368,2]
[348092871,1736307048989,-531.4874556,0.00011368,2]
[348092872,1736307048999,-500.0,0.00011368,2]
[348092873,1736307049009,-596.91,0.00011368,2]
[348092874,1736307049022,-500.0,0.00011368,2]
[348092875,1736307049032,-500.0,0.00011368,2]
[348092876,1736307049042,-559.58,0.00011368,2]
[348092877,1736307049051,-683.62,0.00011368,2]
[348092878,1736307049061,-487.37969964,0.00011368,2]
[348092879,1736307049071,-500.0,0.00011368,2]
[348092880,1736307049080,-500.0,0.00011368,2]
[348092881,1736307049090,-500.0,0.00011368,2]
[348092882,1736307049099,-500.0,0.00011368,2]
[348092883,1736307049109,-834.01,0.00011368,2]
[348092884,1736307049119,-536.45,0.00011368,2]
[348092885,1736307049129,-500.0,0.00011368,2]
[348092886,1736307049138,-571.27,0.00011368,2]
[348092887,1736307049148,-500.0,0.00011368,2]
[348092888,1736307049158,-375.535364,0.00011368,2]
[348092889,1736307049168,-500.0,0.00011368,2]
[348092890,1736307049178,-500.0,0.00011368,2]
[348092891,1736307049188,-1637.45,0.00011368,2]
[348092892,1736307049197,-500.0,0.00011368,2]
[348092893,1736307049207,-591.52,0.00011368,2]
[348092894,1736307049217,-357.80011,0.00011368,2]
[348092895,1736307049226,-500.0,0.00011368,2]
[348092896,1736307049235,-1154.07,0.00011368,2]
[348092897,1736307049244,-824.08,0.00011368,2]
[348092898,1736307049254,-1705.56,0.00011368,2]
[348092899,1736307049263,-500.0,0.00011368,2]
[348092900,1736307049275,-688.7,0.00011368,2]
[348092901,1736307049285,-500.0,0.00011368,2]
[348092902,1736307049295,-500.0,0.00011368,2]
[348092903,1736307049304,-500.0,0.00011368,2]
[348092904,1736307049313,-500.0,0.00011368,2]
[348092905,1736307049323,-629.68,0.00011368,2]
[348092906,1736307049332,-500.0,0.00011368,2]
[348092907,1736307049341,-596.46,0.00011368,2]
[348092908,1736307049351,-511.11,0.00011368,2]
[348092909,1736307049360,-500.0,0.00011368,2]
[348092910,1736307049369,-500.0,0.00011368,2]
[348092911,1736307049379,-2190.99,0.00011368,2]
[348092912,1736307049388,-500.0,0.00011368,2]
[348092913,1736307049397,-916.93,0.00011368,2]
[348092914,1736307049408,-1026.98,0.00011368,2]
[348092915,1736307049417,-530.47,0.00011368,2]
[348092916,1736307049426,-1871.54,0.00011368,2]
[348092917,1736307049435,-500.0,0.00011368,2]
[348092918,1736307049445,-619.19886152,0.00011369,2]
[348092919,1736307049455,-500.0,0.00011369,2]
[348092920,1736307049465,-1615.48,0.00011369,2]
[348092921,1736307049475,-583.6145543,0.00011369,2]
[348092922,1736307049484,-523.61,0.00011369,2]
[348092923,1736307049493,-712.95,0.00011369,2]
[348092924,1736307049503,-577.06,0.00011369,2]
[348092925,1736307049512,-857.33,0.00011369,2]
[348092926,1736307049523,-565.44,0.00011369,2]